bitfinex/quotes_ETHUSD_20250324
["timestamp","ask_amount","ask_price","bid_price","bid_amount"]
[1742858581032,10.47371,2073.8,2073.4,4.82286]
[1742858581231,9.64431,2073.8,2073.4,4.82286]
[1742858581399,4.8227,2073.6,2073.2,9.35443]
[1742858582227,0.8294,2073.5,2073.2,9.35443]
[1742858582628,0.81112626,2073.5,2073.2,9.35443]
[1742858583231,4.82308,2073.4,2073.1,4.531]
[1742858583534,5.305388,2073.4,2073.1,4.531]
[1742858584438,4.82332,2073.3,2073.1,4.531]
[1742858584596,5.305378,2073.4,2073.1,4.531]
[1742858584992,10.128528,2073.4,2073.1,4.531]
[1742858585228,4.82328,2073.3,2073.0,4.82377]
[1742858585726,0.7821,2073.2,2073.0,4.82377]
[1742858587299,0.7821,2073.2,2072.9,34.84915]
[1742858587822,0.7821,2073.2,2072.9,39.6732]
[1742858588028,0.7821,2073.2,2072.9,34.84905]
[1742858588550,0.7821,2073.2,2072.9,9.35505]
[1742858588845,5.60558,2073.2,2072.9,9.35505]
[1742858589462,4.82374,2073.1,2072.8,4.82438]
[1742858589644,4.82374,2073.1,2072.9,4.531]
[1742858589832,4.82374,2073.1,2072.8,4.82438]
[1742858590031,4.82374,2073.1,2072.8,9.35538]
[1742858591961,5.60579,2073.1,2072.8,4.531]
[1742858592260,5.45740132,2073.0,2072.8,4.531]
[1742858592825,0.63339132,2073.0,2072.8,4.531]
[1742858593022,5.60579,2073.1,2072.8,9.35536]
[1742858593228,5.60579,2073.1,2072.7,4.82447]
[1742858593229,0.7821,2073.1,2072.9,4.82408]
[1742858593429,0.7821,2073.1,2072.8,9.35631]
[1742858594363,5.60579,2073.1,2072.8,9.35631]
[1742858597968,10.42959,2073.1,2072.8,4.532]
[1742858598265,7.251759,2073.1,2072.6,9.64958]
[1742858598428,5.60646,2072.9,2072.5,30.32006]
[1742858598768,5.60646,2072.9,2072.6,4.532]
[1742858598935,0.7821,2072.9,2072.5,25.495]
[1742858599137,4.82485,2072.6,2072.5,25.495]
[1742858599341,0.7821,2072.8,2072.5,25.495]
[1742858599342,4.82477,2072.7,2072.5,25.495]
[1742858599539,5.867899,2072.7,2072.5,25.495]
[1742858600461,5.867779,2072.7,2072.5,25.495]
[1742858600673,5.60657,2072.8,2072.5,25.495]
[1742858604366,4.82463,2072.7,2072.5,25.495]
[1742858604534,5.60657,2072.8,2072.5,25.495]
[1742858605075,10.43113,2072.8,2072.5,25.495]
[1742858605370,4.82462,2072.7,2072.5,25.495]
[1742858606069,5.867739,2072.7,2072.5,25.495]
[1742858606267,10.692559,2072.7,2072.5,25.495]
[1742858606466,4.82485,2072.6,2072.5,25.495]
[1742858606871,5.63775,2072.6,2072.5,25.495]
[1742858607170,11.66775,2072.6,2072.5,25.495]
[1742858607375,5.63799,2072.5,2072.4,0.1221504]
[1742858609453,12.21799,2072.5,2072.4,0.1221504]
[1742858609646,15.21799,2072.5,2072.4,0.1221504]
[1742858613392,15.21799,2072.5,2072.4,4e-07]
[1742858614481,4.82602,2072.1,2072.0,1e-05]
[1742858614778,9.18238,2071.6,2071.5,2.35647018]
[1742858614981,15.21238,2071.6,2071.5,2.35647018]
[1742858615482,14.66238,2071.6,2071.5,2.35647018]
[1742858615773,2.64328152,2072.0,2071.5,2.35647018]
[1742858615774,8.67328152,2072.0,2071.9,4.82648]
[1742858615974,8.67328152,2072.0,2071.9,5.60448]
[1742858615975,2.64328152,2072.0,2071.9,5.60448]
[1742858616181,0.8052,2072.8,2071.9,36.56786552]
[1742858616379,0.8052,2072.8,2072.5,4.82497]
[1742858616579,1.58356558,2072.8,2072.3,9.41044]
[1742858616877,0.77836558,2072.8,2072.5,4.82507]
[1742858617043,5.62917,2073.0,2072.5,9.65003]
[1742858617248,5.62917,2073.0,2072.6,4.82481]
[1742858617249,3.8052,2073.0,2072.6,4.82481]
[1742858617487,8.62914,2073.0,2072.5,4.82496]
[1742858618009,4.82474,2072.7,2072.3,4.585]
[1742858618164,4.8249,2072.6,2072.3,4.585]
[1742858618364,0.964964,2072.5,2072.3,4.585]
[1742858620397,0.964964,2072.5,2072.1,4.82586]
[1742858621272,8.132,2073.2,2072.7,4.82446]
[1742858621273,0.7776,2072.9,2072.7,4.82446]
[1742858621597,0.7776,2072.9,2072.1,9.40386]
[1742858621598,3.7776,2072.9,2072.1,9.40386]
[1742858621899,9.65008,2072.6,2072.1,9.40386]
[1742858622197,5.790128,2072.5,2072.1,4.578]
[1742858622396,6.567728,2072.5,2072.1,4.578]
[1742858622701,4.82556,2072.3,2071.7,0.7796]
[1742858622898,4.82614,2072.1,2071.7,0.7796]
[1742858623098,4.82628,2072.0,2071.5,12.01098018]
[1742858623405,5.911744,2072.1,2071.6,4.82716]
[1742858623570,10.737954,2072.1,2071.6,4.82716]
[1742858623897,6.03,2072.3,2071.8,4.82657]
[1742858624100,10.85566,2072.3,2071.9,9.40245]
[1742858624302,6.03,2072.3,2071.9,4.576]
[1742858624601,4.8258,2072.2,2071.9,4.576]
[1742858624900,10.85571,2072.3,2071.9,4.576]
[1742858625102,1.085571,2072.2,2071.9,4.576]
[1742858625823,1.085571,2072.2,2071.9,9.40231]
[1742858626395,1.085571,2072.2,2071.9,4.576]
[1742858626655,3.0,2072.0,2071.5,2.35647018]
[1742858626791,4.82706,2071.7,2071.6,4.574]
[1742858627424,5.60466,2071.7,2071.6,4.574]
[1742858627813,6.03,2071.8,2071.6,4.574]
[1742858628025,6.03,2072.1,2071.7,4.8268]
[1742858628322,1.163351,2072.1,2071.7,4.8268]
[1742858628527,1.163351,2072.1,2071.6,10.18069]
[1742858628697,4.82634,2072.0,2071.6,10.18077]
[1742858628898,4.82654,2071.9,2071.6,4.574]
[1742858629117,4.82634,2072.0,2071.6,4.574]
[1742858629428,6.5886681,2072.0,2071.6,4.574]
[1742858630097,11.4151381,2072.0,2071.6,4.574]
[1742858631019,1.7623281,2072.0,2071.7,4.573]
[1742858631218,4.82688,2071.8,2071.7,4.573]
[1742858632804,4.82688,2071.8,2071.5,27.86747018]
[1742858633023,4.82688,2071.8,2071.7,4.57]
[1742858634445,5.65968,2071.8,2071.6,4.574]
[1742858634648,6.03,2072.0,2071.6,4.574]
[1742858634848,6.03,2072.0,2071.8,4.82657]
[1742858635214,6.03,2072.0,2071.7,5.6065]
[1742858636120,7.598189,2072.0,2071.7,5.6065]
[1742858636456,4.82648,2071.9,2071.8,4.572]
[1742858636745,7.598189,2072.0,2071.8,4.572]
[1742858636916,6.03,2072.0,2071.8,9.39871]
[1742858637722,6.03,2072.0,2071.8,4.572]
[1742858638547,6.03,2072.0,2071.8,10.17822]
[1742858638918,6.03,2072.0,2071.8,5.3516]
[1742858639428,6.03,2072.0,2071.8,4.572]
[1742858639615,4.82659,2071.9,2071.5,32.69479018]
[1742858639815,0.7634,2071.9,2071.5,27.86747018]
[1742858640049,5.5893,2072.2,2071.6,9.39408]
[1742858640355,6.03,2072.3,2071.6,9.39408]
[1742858640356,10.85565,2072.3,2071.8,0.8048]
[1742858640656,1.644439,2072.2,2071.9,9.65273]
[1742858640855,1.644439,2072.2,2072.0,4.82622]
[1742858641149,1.644439,2072.2,2072.1,4.577]
[1742858641455,1.644439,2072.2,2072.1,9.40302]
[1742858641626,6.7934,2072.4,2072.1,9.40302]
[1742858641830,0.965008,2072.5,2072.2,4.82562]
[1742858642029,0.965008,2072.5,2072.3,4.82546]
[1742858643119,6.03,2072.6,2072.3,4.82546]
[1742858643316,15.67991,2072.6,2072.2,5.63052]
[1742858643519,10.85487,2072.6,2072.3,25.513]
[1742858644851,6.03,2072.6,2072.3,25.513]
[1742858645043,6.03,2072.6,2072.3,30.33834]
[1742858645357,3.7849,2072.9,2072.4,4.82527]
[1742858645566,8.60915,2072.9,2072.5,4.82504]
[1742858645733,8.60915,2072.9,2072.6,4.575]
[1742858646428,4.8244,2072.8,2072.6,4.575]
[1742858646759,5.66719979,2072.7,2072.6,4.575]
[1742858647060,0.84257979,2072.7,2072.6,4.575]
[1742858648451,5.66719979,2072.7,2072.6,4.575]
[1742858648656,6.45209979,2072.7,2072.6,4.575]
[1742858649167,4.82485,2072.6,2072.5,25.512]
[1742858649450,5.95254498,2072.6,2072.5,25.512]
[1742858650556,3.7849,2072.9,2072.5,30.33699]
[1742858650854,3.0,2072.9,2072.6,4.82469]
[1742858651557,7.82424,2072.9,2072.5,30.33699]
[1742858651933,7.82424,2072.9,2072.5,30.33695]
[1742858652434,4.82454,2072.8,2072.5,25.512]
[1742858652644,4.82454,2072.8,2072.5,30.33707]
[1742858652941,10.85394,2073.0,2072.6,4.82474]
[1742858653453,6.03,2073.0,2072.5,25.512]
[1742858653656,6.03,2073.0,2072.8,5.59796]
[1742858653956,3.0,2073.1,2072.9,4.586]
[1742858654168,7.8237,2073.1,2072.9,4.586]
[1742858654359,4.82392,2073.0,2072.9,4.586]
[1742858654548,7.82375,2073.1,2072.9,4.586]
[1742858654716,12.64762,2073.1,2072.9,4.586]
[1742858654921,4.82392,2073.0,2072.9,4.586]
[1742858656833,4.82392,2073.0,2072.5,30.33708]
[1742858656834,4.82485,2072.6,2072.5,25.512]
[1742858657431,5.60906,2072.9,2072.5,30.33698]
[1742858657432,5.60927,2072.9,2072.5,30.33698]
[1742858657635,4.82449,2072.8,2072.5,30.33707]
[1742858657871,11.6391,2072.9,2072.5,30.33707]
[1742858658071,4.8245,2072.8,2072.5,25.512]
[1742858658875,4.82474,2072.7,2072.5,30.102]
[1742858659034,4.82474,2072.7,2072.5,25.512]
[1742858659691,4.82485,2072.6,2072.5,25.512]
[1742858660152,5.61945,2072.6,2072.5,25.512]
[1742858660351,6.663869,2072.6,2072.5,25.512]
[1742858661038,6.663869,2072.6,2071.9,6.16]
[1742858661039,4.82595,2072.2,2071.9,25.507]
[1742858661243,4.82595,2072.2,2072.1,4.59]
[1742858661981,4.82595,2072.2,2071.9,25.507]
[1742858662281,4.82636,2072.0,2071.8,4.592]
[1742858662576,9.65282,2072.0,2071.8,4.592]
[1742858662775,4.82648,2071.9,2071.8,4.592]
[1742858663575,4.82648,2071.9,2071.7,5.82123989]
[1742858663764,4.82672,2071.8,2071.7,5.82123989]
[1742858663959,4.82653,2071.9,2071.7,5.82123989]
[1742858664478,11.65058,2072.2,2071.7,10.64809989]
[1742858664643,10.85598,2072.2,2071.8,0.7517]
[1742858665474,6.03,2072.2,2071.9,4.82646]
[1742858666082,6.03,2072.2,2071.9,9.65283]
[1742858666245,6.03,2072.2,2071.9,4.82637]
[1742858666573,6.03,2072.2,2072.0,4.82619]
[1742858666976,6.03,2072.2,2072.0,4.82617]
[1742858667181,6.03,2072.2,2072.1,4.82602]
[1742858667568,10.85469,2072.7,2072.2,4.82561]
[1742858667772,3.0,2072.6,2072.3,9.42141]
[1742858668069,3.0,2072.6,2072.3,14.24681]
[1742858668382,6.03,2072.7,2072.4,4.82523]
[1742858668879,6.03,2072.7,2072.5,5.57676]
[1742858669485,6.03,2072.7,2072.5,0.7517]
[1742858669689,10.85424,2072.9,2072.5,6.593944]
[1742858669987,6.03,2072.9,2072.6,4.82465]
[1742858670192,10.85394,2073.0,2072.6,4.82465]
[1742858671185,10.85394,2073.0,2072.3,4.596]
[1742858671186,4.82473,2072.7,2072.3,9.42142]
[1742858671392,4.82454,2072.8,2072.4,4.82531]
[1742858671688,4.82471,2072.7,2072.3,14.99854]
[1742858672490,1.085454,2072.8,2072.4,4.82523]
[1742858672682,4.82421,2072.9,2072.5,4.82501]
[1742858672881,10.85407,2073.0,2072.3,5.3477]
[1742858673092,15.67816,2073.0,2072.5,4.82494]
[1742858673296,4.82426,2072.9,2072.5,4.82494]
[1742858673594,4.8247,2072.7,2072.6,4.598]
[1742858673804,5.30717,2072.7,2072.6,4.598]
[1742858673971,6.10177,2072.7,2072.6,4.598]
[1742858674762,9.10177,2072.7,2072.6,4.598]
[1742858675076,4.82518,2072.5,2072.3,4.6]
[1742858675273,0.965006,2072.4,2072.1,31.08669]
[1742858675473,0.965006,2072.4,2072.3,4.599]
[1742858676197,5.790326,2072.4,2072.3,4.599]
[1742858676370,0.965006,2072.4,2072.3,4.599]
[1742858676574,0.965006,2072.4,2072.2,4.6]
[1742858676896,0.965006,2072.4,2072.2,4.599]
[1742858677194,0.965006,2072.4,2072.0,4.82624]
[1742858677358,0.965006,2072.4,2072.2,4.599]
[1742858677556,6.03,2072.6,2072.4,4.82527]
[1742858679405,6.03,2072.6,2072.3,5.59828]
[1742858679703,6.03,2072.6,2072.3,10.42368]
[1742858679903,6.03,2072.6,2072.3,5.5982]
[1742858680206,6.03,2072.6,2072.4,4.82531]
[1742858680712,6.03,2072.6,2072.3,5.59828]
[1742858681008,7.646153,2072.6,2072.3,5.59828]
[1742858681208,1.616153,2072.6,2072.3,5.59828]
[1742858681606,6.441083,2072.6,2072.1,5.59877]
[1742858681827,1.616153,2072.6,2072.4,4.599]
[1742858682113,0.6923263,2072.5,2072.4,4.599]
[1742858682816,0.48247,2072.7,2072.4,4.599]
[1742858683184,5.30718,2072.7,2072.4,4.599]
[1742858683411,10.13199,2072.7,2072.4,4.599]
[1742858683713,5.30718,2072.7,2072.4,4.599]
[1742858684719,0.48247,2072.7,2072.4,4.599]
[1742858685015,1.133693,2072.6,2072.4,4.599]
[1742858685409,0.48247,2072.7,2072.4,14.24944]
[1742858685594,0.48247,2072.7,2072.4,9.42418]
[1742858685993,5.30723,2072.7,2072.4,4.599]
[1742858686815,0.48247,2072.7,2072.4,4.599]
[1742858687185,5.30714,2072.7,2072.4,4.599]
[1742858687396,1.616162,2072.6,2072.4,4.599]
[1742858688612,0.48247,2072.7,2072.4,4.599]
[1742858688914,6.03,2072.8,2072.5,4.82508]
[1742858689477,15.679,2072.8,2072.4,4.599]
[1742858689707,10.85444,2072.8,2072.4,9.42429]
[1742858690008,6.03,2072.8,2072.4,9.42413]
[1742858690420,10.85443,2072.8,2072.4,9.42413]
[1742858690581,0.85514923,2072.7,2072.4,9.42413]
[1742858692794,0.85514923,2072.7,2072.4,4.599]
[1742858692989,5.67988923,2072.7,2072.4,4.599]
[1742858693320,4.82495,2072.6,2072.4,4.599]
[1742858694118,5.67988923,2072.7,2072.4,4.599]
[1742858694119,0.85514923,2072.7,2072.4,9.4242]
[1742858694314,10.85444,2072.8,2072.4,9.4242]
[1742858695313,4.82466,2072.7,2072.4,4.599]
[1742858696122,10.85441,2072.8,2072.4,9.4243]
[1742858696418,4.82468,2072.7,2072.4,4.599]
[1742858696722,10.85441,2072.8,2072.4,9.42424]
[1742858697325,6.03,2072.8,2072.5,4.82503]
[1742858697531,6.03,2072.8,2072.4,4.599]
[1742858697532,10.85439,2072.8,2072.4,9.42424]
[1742858699527,15.67895,2072.8,2072.4,4.599]
[1742858699733,10.85439,2072.8,2072.4,4.599]
[1742858700228,6.03,2072.8,2072.4,9.42424]
[1742858701038,10.85447,2072.8,2072.4,9.42424]
[1742858701236,4.82468,2072.7,2072.4,4.599]
[1742858701738,0.8143,2072.6,2072.3,25.508]
[1742858701905,0.8143,2072.6,2072.3,34.90433]
[1742858702107,4.82477,2072.7,2072.3,34.90433]
[1742858702622,4.82462,2072.7,2072.3,30.079]
[1742858702824,5.991512,2072.7,2072.3,30.079]
[1742858703135,4.82496,2072.6,2072.3,30.079]
[1742858704337,5.991512,2072.7,2072.3,30.079]
[1742858704503,10.816352,2072.7,2072.3,30.079]
[1742858704703,5.991512,2072.7,2072.3,30.079]
[1742858705001,4.82462,2072.7,2072.3,35.73577]
[1742858706338,15.67892,2072.8,2072.4,4.82525]
[1742858706638,4.82462,2072.7,2072.3,35.7359]
[1742858708841,6.03,2072.8,2072.5,4.8249]
[1742858709141,10.85443,2072.8,2072.4,4.8253]
[1742858709439,6.03,2072.8,2072.5,4.82507]
[1742858710340,6.03,2072.8,2072.3,30.9104]
[1742858710553,8.62717,2073.2,2072.8,4.82438]
[1742858710752,5.62717,2073.2,2072.8,4.82438]
[1742858711037,5.62717,2073.2,2072.8,9.38938]
[1742858711342,6.03,2073.4,2073.1,4.8236]
[1742858711544,9.64525,2073.6,2073.1,4.8236]
[1742858711545,6.03,2073.5,2073.1,4.8236]
[1742858711862,6.03,2073.5,2073.2,0.8314]
[1742858712062,7.195613,2073.5,2073.2,0.8314]
[1742858712266,7.195613,2073.5,2072.9,0.8314]
[1742858712433,4.82377,2073.1,2072.9,4.57]
[1742858713156,4.82354,2073.2,2072.9,4.57]
[1742858713345,0.8036,2073.4,2073.0,4.82382]
[1742858713549,9.9087983,2073.4,2073.0,4.82382]
[1742858713728,9.9087983,2073.4,2073.0,5.65522]
[1742858714236,4.82323,2073.3,2072.9,4.57]
[1742858714434,5.0857983,2073.4,2072.9,4.57]
[1742858714632,9.6478,2073.1,2072.9,4.57]
[1742858714856,5.7887,2073.0,2072.6,5.65618]
[1742858715067,5.7887,2073.0,2072.8,4.575]
[1742858716753,4.82419,2072.9,2072.5,4.82501]
[1742858716955,4.82439,2072.8,2072.7,4.572]
[1742858717331,4.82439,2072.8,2072.4,5.65657]
[1742858717332,4.82439,2072.8,2072.5,4.577]
[1742858720290,9.64888,2072.8,2072.5,4.577]
[1742858720585,4.82439,2072.8,2072.5,4.577]
[1742858722489,6.03,2072.9,2072.5,9.40206]
[1742858722702,7.18212256,2072.9,2072.5,9.40193]
[1742858722885,6.03,2072.9,2072.6,4.82484]
[1742858723189,6.03,2072.9,2072.8,4.82439]
[1742858726079,6.03,2072.9,2072.7,10.40232]
[1742858726510,6.03,2072.9,2072.8,4.82439]
[1742858728112,4.8236,2073.2,2072.8,4.82439]
[1742858728289,6.60242483,2073.2,2072.8,4.82439]
[1742858731213,11.42604483,2073.2,2072.8,4.82439]
[1742858731413,4.82439,2072.8,2072.7,25.503]
[1742858731614,5.65359,2072.8,2072.7,25.503]
[1742858731782,4.82472,2072.7,2072.4,4.565]
[1742858731981,10.85472,2072.7,2072.4,4.565]
[1742858732186,6.03,2072.7,2072.4,4.565]
[1742858732426,10.85464,2072.7,2072.5,4.565]
[1742858734925,4.82485,2072.6,2072.5,4.565]
[1742858735129,4.82541,2072.4,2072.2,25.503]
[1742858735425,4.82541,2072.4,2072.1,4.563]
[1742858736292,4.82541,2072.4,2072.2,4.563]
[1742858737123,10.48152,2072.5,2072.2,4.563]
[1742858737320,9.65084,2072.4,2072.1,4.563]
[1742858737618,6.03,2072.5,2072.2,4.8256]
[1742858737800,6.03,2072.5,2072.4,4.82532]
[1742858738530,3.0,2072.8,2072.5,4.82497]
[1742858739122,5.65524,2072.9,2072.6,4.564]
[1742858739523,10.47963,2072.9,2072.6,4.564]
[1742858739719,5.65524,2072.9,2072.6,4.564]
[1742858739924,7.606154,2072.9,2072.6,4.564]
[1742858740328,12.430514,2072.9,2072.6,4.564]
[1742858740819,6.775154,2072.9,2072.6,4.564]
[1742858741022,6.775154,2072.9,2072.6,5.361]
[1742858742190,7.82401,2073.0,2072.6,10.18581]
[1742858743025,4.82416,2072.9,2072.6,5.361]
[1742858743997,4.82398,2073.0,2072.6,10.18575]
[1742858744435,0.55,2073.0,2072.4,26.303]
[1742858744603,4.82495,2072.6,2072.5,4.572]
[1742858744931,3.73317,2072.9,2072.5,9.39691]
[1742858745133,3.0,2073.0,2072.6,5.62167]
[1742858746034,7.82394,2073.0,2072.6,5.62167]
[1742858746836,6.03,2073.1,2072.7,4.8246]
[1742858747023,6.03,2073.2,2073.0,4.8238]
[1742858747222,4.82313,2073.4,2073.1,4.585]
[1742858747415,7.82313,2073.4,2073.1,4.585]
[1742858748214,7.82313,2073.4,1958.7,4.96212121]
[1742858748215,0.7517,2073.3,2072.6,5.62184]
[1742858748412,0.7517,2073.3,2072.4,25.506]
[1742858748413,4.82426,2072.9,2072.4,31.12817]
[1742858748618,4.8245,2072.8,2072.6,4.588]
[1742858748945,9.64907,2072.8,2072.6,4.588]
[1742858749238,4.8245,2072.8,2072.6,4.588]
[1742858749606,10.8545,2072.8,2072.6,4.588]
[1742858749935,4.82509,2072.5,2072.4,30.095]
[1742858750307,5.57674,2072.6,2072.4,30.095]
[1742858750507,10.40176,2072.6,2072.4,30.095]
[1742858751124,4.82509,2072.5,2072.4,30.095]
[1742858751329,4.82542,2072.4,2072.2,4.588]
[1742858751834,6.03,2072.6,2072.3,5.59531]
[1742858752340,6.03,2072.6,2072.3,10.42069]
[1742858752519,6.03,2072.6,2072.4,4.82529]
[1742858752936,6.03,2072.6,2072.3,5.59539]
[1742858754157,6.03,2072.6,2072.3,0.7699]
[1742858754512,4.82465,2072.7,2072.3,5.59545]
[1742858754811,3.0,2073.1,2072.3,5.59545]
[1742858754812,6.03,2073.0,2072.6,4.82473]
[1742858755018,7.82405,2073.0,2072.5,4.82502]
[1742858755312,4.82394,2073.0,2072.6,4.82485]
[1742858755513,5.5861,2073.3,2072.9,4.82407]
[1742858755824,6.46727,2073.3,2072.9,4.82404]
[1742858756551,1.64392,2073.3,2072.8,0.7699]
[1742858756739,5.58672,2073.1,2072.7,4.607]
[1742858756948,4.824,2073.0,2072.7,4.607]
[1742858758421,4.82392,2073.0,2072.7,4.607]
[1742858758652,5.58651,2073.1,2072.7,4.607]
[1742858758653,0.7628,2073.1,2072.7,4.607]
[1742858758946,5.58719,2072.8,2072.7,4.607]
[1742858759122,1.321519,2072.8,2072.5,4.606]
[1742858759452,10.41192,2072.8,2072.5,4.606]
[1742858759821,6.03,2073.0,2072.6,4.8248]
[1742858759822,15.67824,2073.0,2072.6,4.8248]
[1742858760141,4.82439,2072.8,2072.5,9.43108]
[1742858760346,4.82432,2072.9,2072.5,9.43108]
[1742858761354,9.64865,2072.9,2072.5,9.43108]
[1742858761826,4.82432,2072.9,2072.5,9.43108]
[1742858762323,4.82475,2072.7,2072.5,4.606]
[1742858762523,5.5872,2072.8,2072.5,4.601]
[1742858762951,4.82477,2072.7,2072.5,4.601]
[1742858763169,4.82475,2072.7,2072.5,4.601]
[1742858763519,4.82518,2072.5,2072.2,26.2749]
[1742858763752,4.82518,2072.5,2072.3,4.601]
[1742858764252,6.03,2072.7,2072.3,4.601]
[1742858764459,6.03,2072.7,2072.6,4.82485]
[1742858764648,6.03,2072.7,2072.6,5.59475]
[1742858764853,4.82376,2073.1,2072.7,4.82447]
[1742858765158,11.64628,2073.2,2072.6,0.7699]
[1742858765159,4.82415,2072.9,2072.8,4.608]
[1742858766766,4.82449,2072.8,2072.4,4.82532]
[1742858766955,4.82493,2072.6,2072.5,4.609]
[1742858767135,4.82493,2072.6,2072.4,4.609]
[1742858768372,4.82509,2072.5,2072.4,4.609]
[1742858768669,4.82493,2072.6,2072.4,4.609]
[1742858768867,4.82509,2072.5,2072.4,4.609]
[1742858769067,6.4895784,2072.5,2072.4,4.609]
[1742858770880,4.8254,2072.4,2072.2,30.9018]
[1742858771277,4.8254,2072.4,2072.2,30.108]
[1742858771580,6.4896484,2072.5,2072.2,30.108]
[1742858772079,6.03,2072.7,2072.4,4.82528]
[1742858772384,6.03,2072.7,2072.4,4.82515]
[1742858772945,6.03,2072.7,2072.3,5.61928]
[1742858773146,4.82501,2072.6,2072.3,0.7938]
[1742858773352,4.8251,2072.5,2072.4,4.607]
[1742858773552,1.647291,2072.5,2072.4,4.607]
[1742858774288,4.82532,2072.4,2072.2,30.112]
[1742858774483,4.82555,2072.3,2072.2,30.112]
[1742858775249,4.82555,2072.3,2072.2,25.505]
[1742858776587,4.82544,2072.4,2072.1,4.605]
[1742858776773,3.0,2072.5,2072.1,9.4309]
[1742858776983,7.82509,2072.5,2072.2,0.7938]
[1742858777478,8.61141799,2072.5,2072.2,0.7938]
[1742858778285,4.82534,2072.4,2072.1,4.605]
[1742858778490,4.82565,2072.3,2072.1,4.604]
[1742858778686,4.82473,2072.7,2072.2,0.7938]
[1742858778996,0.7928,2072.7,2072.2,0.7938]
[1742858779315,4.82513,2072.5,2072.2,0.7938]
[1742858779601,4.82513,2072.5,2072.1,9.43002]
[1742858780273,4.82491,2072.6,2072.2,4.82578]
[1742858780473,4.82491,2072.6,2072.1,9.42989]
[1742858780687,4.82491,2072.6,2072.1,14.25581]
[1742858781203,4.82444,2072.8,2072.3,5.6158]
[1742858781508,4.82462,2072.7,2072.3,5.6158]
[1742858781688,4.82486,2072.6,2072.3,0.7904]
[1742858781983,4.82486,2072.6,2072.4,4.609]
[1742858782390,4.82462,2072.7,2072.4,4.609]
[1742858782576,0.964901,2072.6,2072.4,4.609]
[1742858782783,4.82439,2072.8,2072.5,0.7904]
[1742858783087,4.82495,2072.6,2072.4,4.609]
[1742858783259,9.64997,2072.6,2072.4,4.609]
[1742858783461,5.65249,2072.5,2072.3,4.608]
[1742858783662,4.8254,2072.4,2072.3,4.608]
[1742858784387,5.65249,2072.5,2072.3,4.608]
[1742858784591,6.820739,2072.5,2072.3,4.608]
[1742858784768,11.68203,2072.7,2072.3,4.608]
[1742858784969,6.03,2072.7,2072.3,10.22384]
[1742858785163,6.03,2072.7,2072.4,4.82522]
[1742858787491,6.03,2072.7,2072.3,10.22384]
[1742858787492,6.03,2072.7,2072.3,10.22389]
[1742858787676,6.03,2072.7,2072.3,15.0493]
[1742858787873,6.03,2072.7,2072.3,5.3984]
[1742858788170,6.03,2072.9,2072.4,9.43829]
[1742858788380,6.03,2072.9,2072.8,4.82439]
[1742858788562,6.03,2072.9,2072.7,4.82444]
[1742858789170,6.03,2072.9,2072.8,4.82439]
[1742858789576,6.03,2072.9,2072.7,4.82455]
[1742858789782,6.03,2072.9,2072.7,4.82456]
[1742858789988,10.85354,2073.2,2072.8,4.82437]
[1742858790867,10.85354,2073.2,2072.7,4.82457]
[1742858791069,15.67719,2073.2,2072.7,4.82457]
[1742858791577,10.85354,2073.2,2072.7,9.64904]
[1742858791777,10.85354,2073.2,2072.7,4.82447]
[1742858791987,10.85354,2073.2,2072.8,4.82438]
[1742858792603,10.85354,2073.2,2072.7,4.82457]
[1742858792904,4.82354,2073.2,2072.8,6.57969]
[1742858793291,4.82354,2073.2,2072.9,4.613]
[1742858794409,5.65063,2073.3,2072.9,4.613]
[1742858794578,5.65063,2073.3,2072.9,9.43713]
[1742858794973,4.82299,2073.4,2072.9,14.26114]
[1742858795178,8.64026,2073.5,2073.1,0.7759]
[1742858796083,8.64026,2073.5,2073.1,5.59951]
[1742858796484,8.64026,2073.5,2073.1,0.7759]
[1742858796906,7.82276,2073.5,2073.1,5.59955]
[1742858797078,3.0,2073.5,2073.1,5.59955]
[1742858797278,3.0,2073.5,2073.1,6.56444]
[1742858797474,10.85253,2073.6,2073.1,6.5644]
[1742858797679,6.03,2073.6,2073.2,4.8233]
[1742858797989,3.0,2073.6,2073.3,4.82311]
[1742858798199,3.0,2073.6,2072.9,9.43709]
[1742858798200,6.8475,2073.9,2073.5,5.59845]
[1742858798510,6.8475,2073.9,2073.5,5.3869]
[1742858798511,6.03,2073.9,2073.5,5.3869]
[1742858798812,11.98168815,2074.1,2073.8,0.7759]
[1742858799110,7.16031815,2074.1,2073.8,0.7759]
[1742858799277,4.8214,2074.1,2073.8,0.7759]
[1742858800207,3.0,2074.1,2073.8,0.7759]
[1742858800407,9.288345,2074.1,2073.8,0.7759]
[1742858801313,4.82171,2074.0,2073.6,4.82244]
[1742858801513,4.82171,2074.0,2073.7,0.7759]
[1742858801717,4.82199,2073.9,2073.6,4.608]
[1742858801890,6.3147865,2073.9,2073.6,4.608]